[Event "*** Titled Tuesday Blitz"]
[Site "Chess.com"]
[Date "2020.05.12"]
[Round "6"]
[White "BelaKis"]
[Black "MariaFominykh"]
[Result "1-0"]
[WhiteElo "2119"]
[BlackElo "2326"]
[TimeControl "180+1"]
[EndTime "11:07:14 PDT"]
[Termination "BelaKis won on time"]

1. Nf3 {[%clk 0:03:00.9]} 1... Nf6 {[%clk 0:02:59]} 2. g3 {[%clk 0:03:00.1]}
2... g6 {[%clk 0:02:58.6]} 3. Bg2 {[%clk 0:03:00.6]} 3... Bg7 {[%clk 0:02:58.8]}
4. O-O {[%clk 0:03:01.2]} 4... O-O {[%clk 0:02:58.9]} 5. c4 {[%clk 0:02:57.9]}
5... d6 {[%clk 0:02:58.5]} 6. Nc3 {[%clk 0:02:57.3]} 6... e5 {[%clk 0:02:57.2]}
7. d3 {[%clk 0:02:56.5]} 7... Nc6 {[%clk 0:02:49.9]} 8. Rb1 {[%clk 0:02:56.4]}
8... a6 {[%clk 0:02:48.5]} 9. b4 {[%clk 0:02:55.7]} 9... Bd7 {[%clk 0:02:38]}
10. a4 {[%clk 0:02:55.3]} 10... Qc8 {[%clk 0:02:31.4]} 11. b5 {[%clk 0:02:41.8]}
11... axb5 {[%clk 0:02:23.9]} 12. axb5 {[%clk 0:02:42.7]} 12... Na5 {[%clk
0:02:18.8]} 13. Bd2 {[%clk 0:02:32.8]} 13... Bh3 {[%clk 0:02:13.2]} 14. e4
{[%clk 0:02:28.8]} 14... Bxg2 {[%clk 0:02:09]} 15. Kxg2 {[%clk 0:02:28.6]} 15...
b6 {[%clk 0:02:07.9]} 16. Ra1 {[%clk 0:02:18.2]} 16... Nb7 {[%clk 0:01:56.4]}
17. Rxa8 {[%clk 0:02:14.2]} 17... Qxa8 {[%clk 0:01:55.9]} 18. Qa1 {[%clk
0:02:15.1]} 18... Nc5 {[%clk 0:01:54.9]} 19. Qxa8 {[%clk 0:01:55.7]} 19... Rxa8
{[%clk 0:01:52.9]} 20. Ne1 {[%clk 0:01:55.7]} 20... Ra3 {[%clk 0:01:42.1]} 21.
Kf3 {[%clk 0:01:33.5]} 21... Nfd7 {[%clk 0:01:31.7]} 22. Ke2 {[%clk 0:01:29.1]}
22... Ra1 {[%clk 0:01:08.5]} 23. Nd5 {[%clk 0:01:21.4]} 23... Ne6 {[%clk
0:00:42.1]} 24. Nc2 {[%clk 0:01:13.2]} 24... Ra2 {[%clk 0:00:20.2]} 25. Rc1
{[%clk 0:01:12.7]} 25... Ndc5 {[%clk 0:00:18.1]} 26. Kd1 {[%clk 0:01:03.4]}
26... Nb3 {[%clk 0:00:15.9]} 27. Rb1 {[%clk 0:00:59.9]} 27... Nbc5 {[%clk
0:00:12.7]} 28. Ra1 {[%clk 0:00:58.3]} 28... Rxa1+ {[%clk 0:00:12.3]} 29. Nxa1
{[%clk 0:00:59.2]} 29... Nxd3 {[%clk 0:00:12.8]} 30. f3 {[%clk 0:00:57.7]} 30...
Nb2+ {[%clk 0:00:12.8]} 31. Kc2 {[%clk 0:00:57.8]} 31... Nxc4 {[%clk 0:00:13.4]}
32. Bc1 {[%clk 0:00:55.1]} 32... Na5 {[%clk 0:00:12.3]} 33. Kd1 {[%clk
0:00:49.8]} 33... Nb7 {[%clk 0:00:11.5]} 34. Nc2 {[%clk 0:00:49.6]} 34... Kf8
{[%clk 0:00:11.5]} 35. Ncb4 {[%clk 0:00:48.8]} 35... Ke8 {[%clk 0:00:11.4]} 36.
Na6 {[%clk 0:00:49.1]} 36... Kd7 {[%clk 0:00:10.8]} 37. Be3 {[%clk 0:00:49.2]}
37... Nbc5 {[%clk 0:00:10.2]} 38. Kc2 {[%clk 0:00:48.5]} 38... f5 {[%clk
0:00:09.6]} 39. exf5 {[%clk 0:00:47]} 39... gxf5 {[%clk 0:00:10.5]} 40. Kc3
{[%clk 0:00:45.3]} 40... e4+ {[%clk 0:00:10.3]} 41. Kd2 {[%clk 0:00:43.9]} 41...
exf3 {[%clk 0:00:11.1]} 42. Ke1 {[%clk 0:00:42.8]} 42... Ne4 {[%clk 0:00:11.7]}
43. Bxb6 {[%clk 0:00:39.4]} 43... cxb6 {[%clk 0:00:11.1]} 44. Nxb6+ {[%clk
0:00:40.3]} 44... Kd8 {[%clk 0:00:10.7]} 45. Nd5 {[%clk 0:00:40]} 45... N6c5
{[%clk 0:00:09.4]} 46. b6 {[%clk 0:00:39.8]} 46... Nb7 {[%clk 0:00:08.7]} 47.
Nab4 {[%clk 0:00:38]} 47... Bc3+ {[%clk 0:00:07.3]} 48. Kf1 {[%clk 0:00:37.7]}
48... Bxb4 {[%clk 0:00:06]} 49. Nxb4 {[%clk 0:00:38.6]} 49... Kd7 {[%clk
0:00:05.9]} 50. Nc2 {[%clk 0:00:38.3]} 50... d5 {[%clk 0:00:05.9]} 51. Nd4
{[%clk 0:00:38.5]} 51... Kd6 {[%clk 0:00:06.2]} 52. Nxf3 {[%clk 0:00:38.6]}
52... Kc6 {[%clk 0:00:05.8]} 53. Nd4+ {[%clk 0:00:38.6]} 53... Kxb6 {[%clk
0:00:04.8]} 54. Nxf5 {[%clk 0:00:39.5]} 54... Nbd6 {[%clk 0:00:05.3]} 55. Ne7
{[%clk 0:00:39.1]} 55... Nc4 {[%clk 0:00:04.9]} 56. Nxd5+ {[%clk 0:00:39]} 56...
Kc5 {[%clk 0:00:05.4]} 57. Nf4 {[%clk 0:00:39.1]} 57... Ncd2+ {[%clk 0:00:05.5]}
58. Kg2 {[%clk 0:00:39.3]} 58... Kd4 {[%clk 0:00:05.8]} 59. Nh5 {[%clk
0:00:39.5]} 59... Nc4 {[%clk 0:00:05.8]} 60. Kf3 {[%clk 0:00:39.4]} 60... Ne5+
{[%clk 0:00:05.7]} 61. Kf4 {[%clk 0:00:39.3]} 61... Ng6+ {[%clk 0:00:05.9]} 62.
Kf5 {[%clk 0:00:38.5]} 62... Nf2 {[%clk 0:00:06]} 63. Nf6 {[%clk 0:00:37.8]}
63... Ke3 {[%clk 0:00:06]} 64. Nxh7 {[%clk 0:00:37.5]} 64... Ne7+ {[%clk
0:00:05.8]} 65. Kg5 {[%clk 0:00:37.8]} 65... Nd5 {[%clk 0:00:05.8]} 66. Nf6
{[%clk 0:00:37.2]} 66... Kf3 {[%clk 0:00:05.7]} 67. Nxd5 {[%clk 0:00:36.7]}
67... Ne4+ {[%clk 0:00:03.2]} 68. Kh4 {[%clk 0:00:36.8]} 68... Nf2 {[%clk
0:00:02.3]} 69. Nf6 {[%clk 0:00:36.8]} 69... Nh1 {[%clk 0:00:01.4]} 70. g4
{[%clk 0:00:36.7]} 1-0

[Event "*** Titled Tuesday Blitz"]
[Site "Chess.com"]
[Date "2020.05.12"]
[Round "6"]
[White "EugeneRougon"]
[Black "ehrenfeld"]
[Result "1-0"]
[WhiteElo "2748"]
[BlackElo "2501"]
[TimeControl "180+1"]
[EndTime "11:07:15 PDT"]
[Termination "EugeneRougon won by resignation"]

1. e4 {[%clk 0:02:51.5]} 1... e5 {[%clk 0:02:59.3]} 2. Nf3 {[%clk 0:02:47.1]}
2... Nc6 {[%clk 0:02:59.2]} 3. Bb5 {[%clk 0:02:44.8]} 3... a6 {[%clk 0:02:59.3]}
4. Ba4 {[%clk 0:02:45]} 4... Nf6 {[%clk 0:02:59.7]} 5. O-O {[%clk 0:02:44.6]}
5... Be7 {[%clk 0:03:00.2]} 6. Re1 {[%clk 0:02:44.4]} 6... b5 {[%clk 0:03:00.4]}
7. Bb3 {[%clk 0:02:45]} 7... d6 {[%clk 0:03:01]} 8. c3 {[%clk 0:02:43.3]} 8...
O-O {[%clk 0:03:01.1]} 9. h3 {[%clk 0:02:43.9]} 9... Na5 {[%clk 0:03:01.2]} 10.
Bc2 {[%clk 0:02:44.3]} 10... c5 {[%clk 0:03:01.8]} 11. d4 {[%clk 0:02:45.2]}
11... Qc7 {[%clk 0:03:02]} 12. Nbd2 {[%clk 0:02:44.3]} 12... Bd7 {[%clk
0:03:01.5]} 13. d5 {[%clk 0:02:35.2]} 13... c4 {[%clk 0:03:00]} 14. Nf1 {[%clk
0:02:34.6]} 14... Nb7 {[%clk 0:02:59.5]} 15. Ng3 {[%clk 0:02:28.2]} 15... Nc5
{[%clk 0:02:59.3]} 16. b4 {[%clk 0:02:28]} 16... cxb3 {[%clk 0:02:58.7]} 17.
axb3 {[%clk 0:02:28.9]} 17... a5 {[%clk 0:02:59.2]} 18. Be3 {[%clk 0:02:10.8]}
18... Rfc8 {[%clk 0:02:57.4]} 19. b4 {[%clk 0:01:51.6]} 19... axb4 {[%clk
0:02:55]} 20. Rxa8 {[%clk 0:01:52.4]} 20... Rxa8 {[%clk 0:02:54.2]} 21. cxb4
{[%clk 0:01:53.3]} 21... Na4 {[%clk 0:02:53.7]} 22. Bd3 {[%clk 0:01:50.6]} 22...
Qb8 {[%clk 0:02:39.2]} 23. Qb3 {[%clk 0:01:30.4]} 23... Bd8 {[%clk 0:02:37.7]}
24. Ne2 {[%clk 0:01:00.5]} 24... Bb6 {[%clk 0:02:32.2]} 25. Bxb6 {[%clk
0:01:00.6]} 25... Qxb6 {[%clk 0:02:29.2]} 26. Nc3 {[%clk 0:01:01.5]} 26... Nxc3
{[%clk 0:02:28.4]} 27. Qxc3 {[%clk 0:01:02.4]} 27... g6 {[%clk 0:02:25.9]} 28.
Rc1 {[%clk 0:01:00.7]} 28... Rc8 {[%clk 0:02:19.5]} 29. Qd2 {[%clk 0:01:00.2]}
29... Rxc1+ {[%clk 0:02:19.3]} 30. Qxc1 {[%clk 0:01:01.1]} 30... Nh5 {[%clk
0:02:19.4]} 31. Qh6 {[%clk 0:00:58.7]} 31... f6 {[%clk 0:02:11.2]} 32. Bf1
{[%clk 0:00:56.5]} 32... Qd8 {[%clk 0:02:02.8]} 33. Qe3 {[%clk 0:00:53.7]} 33...
Qb8 {[%clk 0:01:54.9]} 34. Nd2 {[%clk 0:00:49.7]} 34... Kg7 {[%clk 0:01:51]} 35.
Nb1 {[%clk 0:00:49.5]} 35... Nf4 {[%clk 0:01:38.5]} 36. Kh2 {[%clk 0:00:48.8]}
36... f5 {[%clk 0:01:38.7]} 37. Nc3 {[%clk 0:00:36]} 37... fxe4 {[%clk
0:01:30.5]} 38. Qxe4 {[%clk 0:00:21.3]} 38... Qb6 {[%clk 0:01:27.9]} 39. Qe3
{[%clk 0:00:17.3]} 39... Qd4 {[%clk 0:01:19.4]} 40. g3 {[%clk 0:00:14]} 40...
Nh5 {[%clk 0:00:57.6]} 41. Qxd4 {[%clk 0:00:13.8]} 41... exd4 {[%clk 0:00:57.2]}
42. Nxb5 {[%clk 0:00:14.7]} 42... Nf6 {[%clk 0:00:50.7]} 43. Nxd4 {[%clk
0:00:11.6]} 43... Nxd5 {[%clk 0:00:49.8]} 44. b5 {[%clk 0:00:12]} 44... Nb6
{[%clk 0:00:47]} 45. f4 {[%clk 0:00:11.1]} 45... Kf6 {[%clk 0:00:46.9]} 46. Kg2
{[%clk 0:00:10.9]} 46... Ke7 {[%clk 0:00:42.6]} 47. Kf3 {[%clk 0:00:10.2]} 47...
d5 {[%clk 0:00:42.6]} 48. g4 {[%clk 0:00:07.7]} 48... Kd6 {[%clk 0:00:42.5]} 49.
f5 {[%clk 0:00:06.5]} 49... gxf5 {[%clk 0:00:42.2]} 50. Nxf5+ {[%clk 0:00:06.4]}
50... Bxf5 {[%clk 0:00:35.5]} 51. gxf5 {[%clk 0:00:07.3]} 51... Ke5 {[%clk
0:00:35.5]} 52. Kg4 {[%clk 0:00:07.8]} 52... Nd7 {[%clk 0:00:27.8]} 53. Kg5
{[%clk 0:00:06.7]} 53... Nf6 {[%clk 0:00:16.9]} 54. b6 {[%clk 0:00:06.4]} 54...
Nd7 {[%clk 0:00:16.2]} 55. b7 {[%clk 0:00:05.5]} 55... Ke4 {[%clk 0:00:13.8]}
56. f6 {[%clk 0:00:04]} 1-0

[Event "*** Titled Tuesday Blitz"]
[Site "Chess.com"]
[Date "2020.05.12"]
[Round "6"]
[White "David_Paravyan"]
[Black "mbojan"]
[Result "0-1"]
[WhiteElo "2888"]
[BlackElo "2692"]
[TimeControl "180+1"]
[EndTime "11:07:17 PDT"]
[Termination "mbojan won by resignation"]

1. e4 {[%clk 0:03:00.9]} 1... g6 {[%clk 0:02:58.6]} 2. d4 {[%clk 0:03:00.8]}
2... Bg7 {[%clk 0:02:58.9]} 3. Nf3 {[%clk 0:03:00.7]} 3... d6 {[%clk 0:02:58.9]}
4. c4 {[%clk 0:03:01.2]} 4... e5 {[%clk 0:02:58.3]} 5. Nc3 {[%clk 0:03:01]} 5...
Nc6 {[%clk 0:02:57.9]} 6. d5 {[%clk 0:02:59.7]} 6... Nd4 {[%clk 0:02:57.6]} 7.
Be3 {[%clk 0:02:59]} 7... Bg4 {[%clk 0:02:51.7]} 8. Be2 {[%clk 0:02:57.5]} 8...
Bxf3 {[%clk 0:02:51.9]} 9. Bxf3 {[%clk 0:02:58.2]} 9... c5 {[%clk 0:02:51.5]}
10. g3 {[%clk 0:02:55.7]} 10... Ne7 {[%clk 0:02:35.6]} 11. h4 {[%clk 0:02:54]}
11... h5 {[%clk 0:02:34.7]} 12. Bg2 {[%clk 0:02:52]} 12... O-O {[%clk
0:02:33.3]} 13. O-O {[%clk 0:02:21.2]} 13... Kh7 {[%clk 0:02:30.8]} 14. a3
{[%clk 0:02:14.7]} 14... Rc8 {[%clk 0:02:26]} 15. Qd3 {[%clk 0:02:09.7]} 15...
b6 {[%clk 0:02:24.3]} 16. b4 {[%clk 0:02:09.9]} 16... Bh6 {[%clk 0:02:14.2]} 17.
Bxh6 {[%clk 0:02:08.3]} 17... Kxh6 {[%clk 0:02:15.1]} 18. f4 {[%clk 0:02:05]}
18... exf4 {[%clk 0:02:10.9]} 19. Rxf4 {[%clk 0:02:04.3]} 19... Ng8 {[%clk
0:01:56.5]} 20. Raf1 {[%clk 0:02:00.8]} 20... Kg7 {[%clk 0:01:50.2]} 21. Ne2
{[%clk 0:01:55.2]} 21... Nxe2+ {[%clk 0:01:50]} 22. Qxe2 {[%clk 0:01:56.1]}
22... Qe7 {[%clk 0:01:48.9]} 23. g4 {[%clk 0:01:37.5]} 23... hxg4 {[%clk
0:01:43.7]} 24. bxc5 {[%clk 0:01:11.5]} 24... bxc5 {[%clk 0:01:43.2]} 25. Qxg4
{[%clk 0:01:09.6]} 25... Nh6 {[%clk 0:01:39.7]} 26. Qg5 {[%clk 0:01:04.7]} 26...
Rce8 {[%clk 0:01:34.6]} 27. Rf6 {[%clk 0:00:41.9]} 27... Ng8 {[%clk 0:01:26.1]}
28. e5 {[%clk 0:00:23]} 28... dxe5 {[%clk 0:01:16]} 29. Rc6 {[%clk 0:00:22.5]}
29... Rc8 {[%clk 0:00:35.7]} 30. d6 {[%clk 0:00:21.8]} 30... Qxg5 {[%clk
0:00:29.2]} 31. hxg5 {[%clk 0:00:22.7]} 31... Rxc6 {[%clk 0:00:29.2]} 32. Bxc6
{[%clk 0:00:23.6]} 32... Rd8 {[%clk 0:00:29.8]} 33. Rd1 {[%clk 0:00:17.7]} 33...
f6 {[%clk 0:00:30]} 34. Rd5 {[%clk 0:00:17.5]} 34... fxg5 {[%clk 0:00:30]} 35.
d7 {[%clk 0:00:17]} 35... Ne7 {[%clk 0:00:27]} 36. Rxc5 {[%clk 0:00:13.9]} 36...
Nxc6 {[%clk 0:00:27.1]} 37. Rxc6 {[%clk 0:00:14.8]} 37... Rxd7 {[%clk 0:00:28]}
38. Kf2 {[%clk 0:00:13.5]} 38... Kf7 {[%clk 0:00:27.3]} 39. Ke3 {[%clk
0:00:13.4]} 39... g4 {[%clk 0:00:27.4]} 40. Ke4 {[%clk 0:00:11]} 40... g3 {[%clk
0:00:27.7]} 41. Kf3 {[%clk 0:00:09.7]} 41... Rd3+ {[%clk 0:00:27.7]} 42. Kg2
{[%clk 0:00:09.3]} 42... Rxa3 {[%clk 0:00:28.6]} 43. c5 {[%clk 0:00:09.6]} 43...
g5 {[%clk 0:00:25.8]} 44. Rd6 {[%clk 0:00:06.3]} 44... Ke7 {[%clk 0:00:25.8]}
45. Rg6 {[%clk 0:00:05.8]} 45... Kd7 {[%clk 0:00:25]} 46. Rxg5 {[%clk
0:00:05.4]} 46... e4 {[%clk 0:00:24.8]} 47. Re5 {[%clk 0:00:05.3]} 47... Kc6
{[%clk 0:00:24.7]} 48. Rxe4 {[%clk 0:00:04.5]} 48... Kxc5 {[%clk 0:00:24.9]} 49.
Re5+ {[%clk 0:00:05.1]} 49... Kd6 {[%clk 0:00:25.1]} 50. Rh5 {[%clk 0:00:04]}
50... a5 {[%clk 0:00:20.7]} 51. Rg5 {[%clk 0:00:04.5]} 51... a4 {[%clk 0:00:19]}
52. Ra5 {[%clk 0:00:02.8]} 52... Kc6 {[%clk 0:00:19.4]} 53. Kh3 {[%clk
0:00:02.5]} 53... Kb6 {[%clk 0:00:19.3]} 54. Ra8 {[%clk 0:00:03]} 54... Kb7
{[%clk 0:00:17.6]} 55. Ra5 {[%clk 0:00:03]} 55... Kb6 {[%clk 0:00:18.1]} 56. Ra8
{[%clk 0:00:03.6]} 56... Kb5 {[%clk 0:00:18.8]} 57. Rb8+ {[%clk 0:00:02.8]}
57... Kc4 {[%clk 0:00:18.9]} 58. Ra8 {[%clk 0:00:03.4]} 58... Kb4 {[%clk
0:00:18.5]} 59. Rb8+ {[%clk 0:00:01.7]} 59... Kc3 {[%clk 0:00:18.8]} 60. Kxg3
{[%clk 0:00:01.3]} 60... Rb3 {[%clk 0:00:19.2]} 61. Ra8 {[%clk 0:00:01.9]} 61...
Kb2+ {[%clk 0:00:19.5]} 62. Kf2 {[%clk 0:00:02.3]} 62... a3 {[%clk 0:00:20.2]}
0-1

[Event "*** Titled Tuesday Blitz"]
[Site "Chess.com"]
[Date "2020.05.12"]
[Round "6"]
[White "BogdanBelyakov89"]
[Black "ljuks68"]
[Result "1-0"]
[WhiteElo "2562"]
[BlackElo "2385"]
[TimeControl "180+1"]
[EndTime "11:07:19 PDT"]
[Termination "BogdanBelyakov89 won on time"]

1. e4 {[%clk 0:03:00.9]} 1... e6 {[%clk 0:02:59]} 2. d4 {[%clk 0:03:00.8]} 2...
d5 {[%clk 0:02:59.2]} 3. Nc3 {[%clk 0:03:01.4]} 3... Bb4 {[%clk 0:02:58.7]} 4.
a3 {[%clk 0:03:00.9]} 4... Bxc3+ {[%clk 0:02:58.3]} 5. bxc3 {[%clk 0:03:01.8]}
5... Ne7 {[%clk 0:02:58.7]} 6. e5 {[%clk 0:03:00.3]} 6... c5 {[%clk 0:02:58.7]}
7. a4 {[%clk 0:02:59.8]} 7... Qa5 {[%clk 0:02:53.5]} 8. Bd2 {[%clk 0:02:58.1]}
8... Bd7 {[%clk 0:02:53.2]} 9. Nf3 {[%clk 0:02:50.4]} 9... Nbc6 {[%clk 0:02:53]}
10. Bd3 {[%clk 0:02:49.2]} 10... c4 {[%clk 0:02:52.7]} 11. Be2 {[%clk 0:02:49]}
11... O-O-O {[%clk 0:02:50.9]} 12. O-O {[%clk 0:02:48.5]} 12... f6 {[%clk
0:02:50.9]} 13. exf6 {[%clk 0:02:47.5]} 13... gxf6 {[%clk 0:02:50.5]} 14. Re1
{[%clk 0:02:47.7]} 14... Nf5 {[%clk 0:02:49.1]} 15. Bf1 {[%clk 0:02:45.6]} 15...
Nd6 {[%clk 0:02:46.7]} 16. Qb1 {[%clk 0:02:30.1]} 16... Ne4 {[%clk 0:02:38.9]}
17. Qb5 {[%clk 0:02:29.1]} 17... Nxd2 {[%clk 0:02:36.4]} 18. Nxd2 {[%clk
0:02:28.7]} 18... Qxc3 {[%clk 0:02:32.8]} 19. Rab1 {[%clk 0:02:22.5]} 19... Na5
{[%clk 0:02:30.2]} 20. Qc5+ {[%clk 0:02:19.2]} 20... Nc6 {[%clk 0:02:21.8]} 21.
Nf3 {[%clk 0:01:55.8]} 21... b6 {[%clk 0:01:53.9]} 22. Qd6 {[%clk 0:01:53.5]}
22... Nxd4 {[%clk 0:01:40.3]} 23. Nxd4 {[%clk 0:01:02.8]} 23... Qxd4 {[%clk
0:01:39.5]} 24. a5 {[%clk 0:01:02.4]} 24... Qc5 {[%clk 0:01:35.7]} 25. Qxc5+
{[%clk 0:00:56.5]} 25... bxc5 {[%clk 0:01:35.3]} 26. a6 {[%clk 0:00:57.1]} 26...
e5 {[%clk 0:01:05.3]} 27. Rb7 {[%clk 0:00:55.9]} 27... Bc6 {[%clk 0:01:05.3]}
28. Rf7 {[%clk 0:00:45.4]} 28... Rhf8 {[%clk 0:01:02.7]} 29. Rxh7 {[%clk
0:00:45.3]} 29... Rd7 {[%clk 0:00:59.6]} 30. Rh6 {[%clk 0:00:42.3]} 30... d4
{[%clk 0:00:56.6]} 31. Bxc4 {[%clk 0:00:40.6]} 31... Bd5 {[%clk 0:00:36.2]} 32.
Bd3 {[%clk 0:00:30.1]} 32... Kc7 {[%clk 0:00:31.4]} 33. Rb1 {[%clk 0:00:29.4]}
33... c4 {[%clk 0:00:26.8]} 34. Bf5 {[%clk 0:00:25.9]} 34... Re7 {[%clk
0:00:26.3]} 35. f3 {[%clk 0:00:25.6]} 35... Kd6 {[%clk 0:00:15.3]} 36. h4 {[%clk
0:00:24.3]} 36... Kc5 {[%clk 0:00:13.8]} 37. h5 {[%clk 0:00:24.3]} 37... e4
{[%clk 0:00:10.9]} 38. fxe4 {[%clk 0:00:20.4]} 38... Bxe4 {[%clk 0:00:10.6]} 39.
Bxe4 {[%clk 0:00:20.7]} 39... Rxe4 {[%clk 0:00:10.6]} 40. Rb7 {[%clk 0:00:20.9]}
40... Re2 {[%clk 0:00:10.4]} 41. Rc7+ {[%clk 0:00:20.3]} 41... Kd5 {[%clk
0:00:09.7]} 42. Rd7+ {[%clk 0:00:16.5]} 42... Kc5 {[%clk 0:00:09.6]} 43. Rxa7
{[%clk 0:00:14.4]} 43... Rxc2 {[%clk 0:00:08.7]} 44. Rc7+ {[%clk 0:00:14.6]}
44... Kd5 {[%clk 0:00:06.7]} 45. a7 {[%clk 0:00:12.7]} 45... d3 {[%clk
0:00:04.4]} 46. Rxf6 {[%clk 0:00:12.7]} 46... Ra8 {[%clk 0:00:03.2]} 47. Rff7
{[%clk 0:00:11.8]} 47... d2 {[%clk 0:00:02.1]} 48. Rfd7+ {[%clk 0:00:12.1]}
48... Ke4 {[%clk 0:00:01.7]} 49. Kh2 {[%clk 0:00:12]} 49... c3 {[%clk
0:00:01.2]} 50. h6 {[%clk 0:00:12]} 50... Rc1 {[%clk 0:00:01.4]} 51. h7 {[%clk
0:00:12.3]} 51... d1=Q {[%clk 0:00:01.5]} 52. Rxd1 {[%clk 0:00:12]} 52... Rxd1
{[%clk 0:00:02]} 53. Re7+ {[%clk 0:00:06.1]} 53... Kf5 {[%clk 0:00:01.2]} 54.
Rg7 {[%clk 0:00:03.8]} 1-0

[Event "*** Titled Tuesday Blitz"]
[Site "Chess.com"]
[Date "2020.05.12"]
[Round "6"]
[White "ameetghasi100"]
[Black "RitvarsReimanis"]
[Result "1-0"]
[WhiteElo "2718"]
[BlackElo "2487"]
[TimeControl "180+1"]
[EndTime "11:07:21 PDT"]
[Termination "ameetghasi100 won by resignation"]

1. Nf3 {[%clk 0:03:00.9]} 1... Nf6 {[%clk 0:02:59.7]} 2. g3 {[%clk 0:03:01.8]}
2... e6 {[%clk 0:02:59.9]} 3. Bg2 {[%clk 0:03:02.1]} 3... d5 {[%clk 0:03:00.8]}
4. O-O {[%clk 0:03:02.4]} 4... Be7 {[%clk 0:03:01.3]} 5. d3 {[%clk 0:03:02.4]}
5... O-O {[%clk 0:03:01.6]} 6. Nbd2 {[%clk 0:03:03.3]} 6... b6 {[%clk
0:02:40.4]} 7. e3 {[%clk 0:03:02.5]} 7... Bb7 {[%clk 0:02:40.1]} 8. b3 {[%clk
0:03:03.4]} 8... c5 {[%clk 0:02:39.1]} 9. Bb2 {[%clk 0:03:04]} 9... Nfd7 {[%clk
0:02:33.5]} 10. c4 {[%clk 0:02:36.6]} 10... Bf6 {[%clk 0:02:32.2]} 11. d4 {[%clk
0:02:32.6]} 11... dxc4 {[%clk 0:02:28.2]} 12. Nxc4 {[%clk 0:02:31.4]} 12... cxd4
{[%clk 0:02:24.2]} 13. Bxd4 {[%clk 0:02:26.7]} 13... Bxd4 {[%clk 0:02:09.2]} 14.
Qxd4 {[%clk 0:02:27.6]} 14... Nc6 {[%clk 0:02:09]} 15. Qf4 {[%clk 0:02:19.2]}
15... Nc5 {[%clk 0:01:53.1]} 16. Nd6 {[%clk 0:01:53.4]} 16... Ba6 {[%clk
0:01:49.3]} 17. Rfd1 {[%clk 0:01:47.6]} 17... Qc7 {[%clk 0:01:40.6]} 18. Ng5
{[%clk 0:01:22]} 18... e5 {[%clk 0:01:22.3]} 19. Qf5 {[%clk 0:01:13.3]} 19... g6
{[%clk 0:01:11]} 20. Qh3 {[%clk 0:01:06]} 20... h5 {[%clk 0:01:03.4]} 21. g4
{[%clk 0:01:00.2]} 21... Bc8 {[%clk 0:00:48.5]} 22. Nxc8 {[%clk 0:00:50.1]}
22... Qxc8 {[%clk 0:00:49.4]} 23. Qf3 {[%clk 0:00:43.8]} 23... e4 {[%clk
0:00:45.9]} 24. Nxe4 {[%clk 0:00:37]} 24... Ne5 {[%clk 0:00:46.2]} 25. Qf4
{[%clk 0:00:30.1]} 25... Nxg4 {[%clk 0:00:36.6]} 26. h3 {[%clk 0:00:28.7]} 26...
Ne6 {[%clk 0:00:35.8]} 27. Qg3 {[%clk 0:00:23.7]} 27... Nh6 {[%clk 0:00:36.4]}
28. Qe5 {[%clk 0:00:23.8]} 28... Qb8 {[%clk 0:00:30]} 29. Rd6 {[%clk 0:00:22.9]}
29... Ng7 {[%clk 0:00:24.7]} 30. Nf6+ {[%clk 0:00:21.4]} 30... Kh8 {[%clk
0:00:25.4]} 31. Nd7 {[%clk 0:00:21]} 31... Qe8 {[%clk 0:00:23.8]} 32. Qd5 {[%clk
0:00:20.6]} 32... Rc8 {[%clk 0:00:20.6]} 33. Nxf8 {[%clk 0:00:20]} 33... Qxf8
{[%clk 0:00:21.5]} 34. Rd1 {[%clk 0:00:20]} 34... Ne6 {[%clk 0:00:20.6]} 35.
Qe5+ {[%clk 0:00:19.6]} 35... Qg7 {[%clk 0:00:20.5]} 36. Qxg7+ {[%clk
0:00:18.4]} 36... Kxg7 {[%clk 0:00:21.4]} 37. Rd7 {[%clk 0:00:18.2]} 37... Rc2
{[%clk 0:00:19.1]} 38. Rxa7 {[%clk 0:00:17]} 38... Nf5 {[%clk 0:00:19]} 39. Rdd7
{[%clk 0:00:16.8]} 39... Nh6 {[%clk 0:00:19.4]} 40. Bd5 {[%clk 0:00:15.9]} 40...
Nc5 {[%clk 0:00:19]} 41. Rdc7 {[%clk 0:00:14.6]} 41... Kf6 {[%clk 0:00:17]} 42.
Bxf7 {[%clk 0:00:14.2]} 42... Kg5 {[%clk 0:00:17.5]} 43. Bd5 {[%clk 0:00:13.7]}
43... Nf5 {[%clk 0:00:17.3]} 44. b4 {[%clk 0:00:13.2]} 44... Rc1+ {[%clk
0:00:16.8]} 45. Kg2 {[%clk 0:00:12.8]} 45... Nd3 {[%clk 0:00:17.7]} 46. Rxc1
{[%clk 0:00:12]} 46... Nxc1 {[%clk 0:00:18.2]} 47. Be4 {[%clk 0:00:12]} 47...
Nh4+ {[%clk 0:00:16.7]} 48. Kg3 {[%clk 0:00:11.1]} 48... Ne2+ {[%clk 0:00:16.4]}
49. Kh2 {[%clk 0:00:11.7]} 49... Nc3 {[%clk 0:00:16.6]} 50. f4+ {[%clk 0:00:12]}
50... Kf6 {[%clk 0:00:16.1]} 51. Bd3 {[%clk 0:00:11.5]} 51... Nd5 {[%clk
0:00:14.4]} 52. Ra6 {[%clk 0:00:11.7]} 52... Nxe3 {[%clk 0:00:12.7]} 53. Rxb6+
{[%clk 0:00:11.9]} 53... Kf7 {[%clk 0:00:13.6]} 54. a4 {[%clk 0:00:11.7]} 54...
Nd5 {[%clk 0:00:13.7]} 55. Rb7+ {[%clk 0:00:11.6]} 55... Kf6 {[%clk 0:00:14.3]}
56. a5 {[%clk 0:00:12.4]} 56... Nxf4 {[%clk 0:00:14.1]} 57. Be4 {[%clk
0:00:12.9]} 57... Ne2 {[%clk 0:00:11.3]} 58. a6 {[%clk 0:00:11.7]} 58... Nc3
{[%clk 0:00:12]} 59. a7 {[%clk 0:00:11.4]} 59... Nxe4 {[%clk 0:00:12.2]} 60.
a8=Q {[%clk 0:00:11.6]} 60... Nf3+ {[%clk 0:00:12.7]} 61. Kg2 {[%clk 0:00:11.9]}
61... Nh4+ {[%clk 0:00:12.8]} 62. Kf1 {[%clk 0:00:11.8]} 62... Nf5 {[%clk
0:00:11.4]} 63. Rb6+ {[%clk 0:00:11.1]} 63... Kg5 {[%clk 0:00:11.6]} 64. Qxe4
{[%clk 0:00:11.1]} 1-0